fUSD/lending_fUSD_20250405
["ID","MTS","AMOUNT","RATE_DAILY","PERIOD"]
[357202423,1743891046891,-500.0,0.00030409,2]
[357202425,1743891046900,-500.0,0.00030409,2]
[357202427,1743891046910,-500.0,0.00030409,2]
[357202428,1743891046919,-503.15962748,0.00030409,2]
[357202429,1743891046929,-516.20788152,0.00030409,88]
[357202430,1743891046939,-505.73646463,0.00030409,2]
[357202431,1743891046948,-525.27678245,0.00030409,2]
[357202432,1743891046958,-500.0,0.00030409,2]
[357202433,1743891046968,-505.53603519,0.00030409,2]
[357202434,1743891046978,-500.0,0.00030409,2]
[357202435,1743891046987,-498.08327618,0.00030409,2]
[357202436,1743891046997,-515.35551649,0.00030409,2]
[357202437,1743891047006,-538.0082809,0.00030409,2]
[357202438,1743891047016,-500.0,0.00030409,2]
[357202439,1743891047025,-500.0,0.00030409,2]
[357202440,1743891047035,-500.0,0.00030409,2]
[357202441,1743891047044,-500.0,0.00030409,2]
[357202442,1743891047053,-563.87776121,0.00030409,2]
[357202443,1743891047062,-370.24875043,0.00030409,2]
[357202444,1743891047072,-500.0,0.00030409,2]
[357202445,1743891047081,-500.0,0.00030409,2]
[357202446,1743891047091,-500.0,0.00030409,2]
[357202447,1743891047101,-500.0,0.00030409,2]
[357202448,1743891047110,-177.05530148,0.00030409,2]
[357202449,1743891047120,-256.37531023,0.00030409,2]
[357202450,1743891047129,-500.0,0.00030409,2]
[357202451,1743891047140,-496.32738458,0.00030409,2]
[357202452,1743891047150,-500.0,0.00030409,2]
[357202453,1743891047159,-500.0,0.00030409,2]
[357202454,1743891047168,-500.0,0.00030409,2]
[357202455,1743891047178,-500.0,0.00030409,2]
[357202456,1743891047188,-591.8857068,0.00030409,2]
[357202457,1743891047197,-639.85800621,0.00030409,2]
[357202458,1743891047207,-500.0,0.00030409,2]
[357202459,1743891047216,-500.0,0.00030409,2]
[357202460,1743891047225,-500.0,0.00030409,2]
[357202461,1743891047235,-625.41668502,0.00030409,2]
[357202462,1743891047244,-500.0,0.00030409,2]
[357202463,1743891047253,-500.0,0.00030409,2]
[357202464,1743891047262,-500.0,0.00030409,2]
[357202465,1743891047272,-500.0,0.00030409,2]
[357202466,1743891047281,-550.94411657,0.00030409,2]
[357202467,1743891047291,-500.0,0.00030409,2]
[357202468,1743891047300,-504.89213716,0.00030409,2]
[357202469,1743891047309,-514.9484629,0.00030409,2]
[357202470,1743891047319,-512.42813622,0.00030409,2]
[357202471,1743891047328,-508.36268441,0.00030409,2]
[357202472,1743891047337,-515.15768502,0.00030409,2]
[357202473,1743891047347,-500.0,0.00030409,2]
[357202474,1743891047357,-500.0,0.00030409,2]
[357202475,1743891047366,-507.25487999,0.00030409,2]
[357202476,1743891047376,-510.3599884,0.00030409,2]
[357202477,1743891047386,-505.51354424,0.00030409,2]
[357202478,1743891047395,-500.0,0.00030409,2]
[357202479,1743891047405,-503.8039511,0.00030409,2]
[357202480,1743891047414,-524.77731782,0.00030409,2]
[357202481,1743891047424,-502.05361515,0.00030409,2]
[357202482,1743891047433,-914.54,0.00030409,2]
[357202483,1743891047443,-504.37245574,0.00030409,2]
[357202484,1743891047451,-500.0,0.00030409,2]
[357202485,1743891047461,-500.0,0.00030409,2]
[357202486,1743891047471,-512.34243524,0.00030409,2]
[357202487,1743891047480,-509.53479693,0.00030409,2]
[357202488,1743891047490,-511.01032896,0.00030409,2]
[357202489,1743891047499,-508.25682787,0.00030409,2]
[357202490,1743891047508,-546.5547696,0.00030409,2]
[357202491,1743891047518,-514.32516263,0.00030409,2]
[357202492,1743891047527,-500.0,0.00030409,2]
[357202493,1743891047536,-500.0,0.00030409,2]
[357202494,1743891047546,-522.29143406,0.00030409,2]
[357202495,1743891047555,-500.0,0.00030409,2]
[357202496,1743891047564,-500.0,0.00030409,2]
[357202497,1743891047574,-202.59416305,0.00030409,2]
[357202498,1743891047584,-500.0,0.00030409,2]
[357202499,1743891047593,-505.65859818,0.00030409,2]
[357202500,1743891047602,-500.0,0.00030409,2]
[357202501,1743891047612,-695.17,0.00030409,2]
[357202502,1743891047622,-521.64653678,0.00030409,2]
[357202503,1743891047631,-500.0,0.00030409,2]
[357202504,1743891047641,-517.21842184,0.00030409,2]
[357202505,1743891047650,-530.73285427,0.00030409,2]
[357202506,1743891047661,-521.86781208,0.00030409,2]
[357202507,1743891047672,-506.35396921,0.00030409,2]
[357202508,1743891047681,-500.0,0.00030409,2]
[357202509,1743891047692,-246.36014356,0.00030409,2]
[357202510,1743891047703,-500.93934207,0.00030409,2]
[357202511,1743891047712,-527.41865298,0.00030409,2]
[357202512,1743891047721,-507.55786396,0.00030409,2]
[357202513,1743891047731,-523.64388739,0.00030409,2]
[357202514,1743891047742,-512.85234635,0.00030409,2]
[357202515,1743891047751,-520.1256991,0.00030409,2]
[357202516,1743891047760,-508.33661592,0.00030409,2]
[357202517,1743891047770,-500.0,0.00030409,2]
[357202518,1743891047779,-511.94079999,0.00030409,2]
[357202519,1743891047788,-2000.0,0.00030409,2]
[357202520,1743891047798,-500.0,0.00030409,2]
[357202521,1743891047807,-500.0,0.00030409,2]
[357202522,1743891047817,-507.10574569,0.00030409,2]
[357202523,1743891047826,-500.0,0.00030409,2]
[357202524,1743891047835,-524.04407347,0.00030409,2]
[357202525,1743891047844,-500.0,0.00030409,2]
[357202526,1743891047854,-509.27504116,0.00030409,2]
[357202527,1743891047865,-500.0,0.00030409,2]
[357202528,1743891047874,-500.0,0.00030409,2]
[357202529,1743891047883,-500.0,0.00030409,2]
[357202530,1743891047893,-500.0,0.00030409,2]
[357202531,1743891047902,-500.0,0.00030409,2]
[357202532,1743891047912,-500.0,0.00030409,2]
[357202533,1743891047921,-608.11,0.00030409,2]
[357202534,1743891047930,-500.0,0.00030409,2]
[357202535,1743891047940,-1156.3,0.00030409,2]
[357202536,1743891047949,-500.0,0.00030409,2]
[357202537,1743891047958,-500.0,0.00030409,2]
[357202538,1743891047968,-500.0,0.00030409,2]
[357202539,1743891047977,-500.0,0.00030409,2]
[357202540,1743891047987,-326.50789542,0.00030409,2]
[357202541,1743891047996,-536.25256253,0.00030409,2]
[357202542,1743891048006,-500.0,0.00030409,2]
[357202543,1743891048015,-504.34057945,0.00030409,2]
[357202544,1743891048025,-500.0,0.00030409,2]
[357202545,1743891048034,-526.80877116,0.00030409,2]
[357202546,1743891048044,-500.0,0.00030409,2]
[357202547,1743891048053,-500.0,0.00030409,2]
[357202548,1743891048063,-500.0,0.00030409,2]
[357202549,1743891048073,-500.0,0.00030409,2]
[357202550,1743891048083,-509.03326171,0.00030409,2]
[357202551,1743891048093,-532.5027619,0.00030409,2]
[357202552,1743891048103,-500.0,0.00030409,2]
[357202553,1743891048115,-525.84396597,0.00030409,2]
[357202554,1743891048125,-511.74734538,0.00030409,2]
[357202555,1743891048135,-503.90863369,0.00030409,2]
[357202556,1743891048145,-547.23314002,0.00030409,2]
[357202557,1743891048155,-500.0,0.00030409,2]
[357202558,1743891048164,-500.0,0.00030409,2]
[357202559,1743891048174,-521.73412271,0.00030409,2]
[357202560,1743891048184,-495.26134942,0.00030409,2]
[357202561,1743891048194,-500.0,0.00030409,2]
[357202562,1743891048203,-500.0,0.00030409,2]
[357202563,1743891048213,-500.0,0.00030409,2]
[357202564,1743891048223,-533.80822961,0.00030409,2]
[357202565,1743891048232,-519.37752446,0.00030409,2]
[357202566,1743891048242,-500.0,0.00030409,2]
[357202567,1743891048251,-503.84154729,0.00030409,2]
[357202568,1743891048260,-530.05493845,0.00030409,2]
[357202569,1743891048270,-504.82146684,0.00030409,2]
[357202570,1743891048279,-538.12514263,0.00030409,2]
[357202571,1743891048289,-523.72783162,0.00030409,2]
[357202572,1743891048299,-500.0,0.00030409,2]
[357202573,1743891048308,-506.54079092,0.00030409,2]
[357202574,1743891048318,-518.23419349,0.00030409,2]
[357202575,1743891048327,-511.18313761,0.00030409,2]
[357202576,1743891048340,-543.90585606,0.00030409,2]
[357202577,1743891048352,-515.49579493,0.00030409,2]
[357202578,1743891048363,-513.1017132,0.00030409,2]
[357202579,1743891048373,-500.0,0.00030409,2]
[357202580,1743891048383,-518.69472505,0.00030409,2]
[357202581,1743891048392,-500.0,0.00030409,2]
[357202582,1743891048403,-500.0,0.0003041,2]
[357202583,1743891048413,-500.0,0.0003041,2]
[357202584,1743891048422,-500.0,0.0003041,2]
[357202585,1743891048432,-500.0,0.0003041,2]
[357202586,1743891048442,-500.0,0.0003041,2]
[357202587,1743891048452,-500.0,0.0003041,2]
[357202588,1743891048462,-493.82309319,0.0003041,2]
[357202589,1743891048471,-500.0,0.0003041,2]
[357202590,1743891048481,-415.22733252,0.0003041,2]
[357202591,1743891048490,-500.0,0.0003041,2]
[357202592,1743891048499,-500.0,0.0003041,2]
[357202593,1743891048509,-184.22035274,0.0003041,2]
[357202594,1743891048518,-500.0,0.0003041,2]
[357202595,1743891048527,-500.0,0.0003041,2]
[357202596,1743891048537,-500.0,0.0003041,2]
[357202597,1743891048546,-500.0,0.0003041,2]
[357202598,1743891048555,-500.0,0.0003041,2]
[357202599,1743891048566,-500.0,0.0003041,2]
[357202600,1743891048575,-397.27665779,0.0003041,2]
[357202601,1743891048585,-500.0,0.0003041,2]
[357202602,1743891048595,-500.0,0.0003041,2]
[357202603,1743891048604,-500.0,0.0003041,2]
[357202604,1743891048613,-500.0,0.0003041,2]
[357202605,1743891048623,-500.0,0.0003041,2]
[357202606,1743891048632,-500.0,0.0003041,2]
[357202607,1743891048642,-500.0,0.0003041,2]
[357202608,1743891048651,-500.0,0.0003041,2]
[357202609,1743891048662,-500.0,0.0003041,2]
[357202610,1743891048673,-500.0,0.0003041,2]
[357202611,1743891048682,-500.0,0.0003041,2]
[357202612,1743891048691,-215.86903091,0.0003041,2]
[357202613,1743891048703,-6618.83,0.0003041,2]
[357202614,1743891048712,-500.0,0.0003041,2]
[357202615,1743891048722,-500.0,0.0003041,2]
[357202616,1743891048732,-500.0,0.0003041,2]
[357202617,1743891048744,-500.0,0.0003041,2]
[357202618,1743891048754,-500.0,0.0003041,2]
[357202619,1743891048763,-500.0,0.0003041,2]
[357202620,1743891048772,-537.22,0.0003041,2]
[357202621,1743891048781,-500.0,0.0003041,2]
[357202622,1743891048792,-574.38,0.0003041,2]
[357202623,1743891048801,-549.15,0.0003041,2]
[357202624,1743891048811,-4074.96,0.0003041,2]
[357202625,1743891048820,-603.34734769,0.0003041,2]
[357202626,1743891048829,-500.0,0.0003041,2]
[357202627,1743891048840,-1831.85,0.0003041,2]
[357202628,1743891048848,-500.0,0.0003041,2]
[357202629,1743891048856,-500.0,0.0003041,2]
[357202630,1743891048865,-978.64,0.0003041,2]
[357202631,1743891048874,-500.0,0.0003041,2]
[357202632,1743891048883,-500.0,0.0003041,2]
[357202633,1743891048892,-500.0,0.0003041,2]
[357202634,1743891048902,-500.0,0.0003041,2]
[357202635,1743891048911,-2087.13,0.0003041,2]
[357202636,1743891048922,-7919.85,0.0003041,2]
[357202637,1743891048934,-500.0,0.0003041,2]
[357202638,1743891048944,-500.0,0.0003041,2]
[357202639,1743891048954,-500.0,0.0003041,2]
[357202640,1743891048963,-500.0,0.0003041,2]
[357202641,1743891048973,-500.0,0.0003041,2]
[357202642,1743891048982,-500.0,0.0003041,2]
[357202643,1743891048991,-217.13231893,0.0003041,2]
[357202644,1743891049000,-500.0,0.0003041,2]
[357202645,1743891049009,-500.0,0.0003041,2]
[357202646,1743891049018,-501.69703881,0.0003041,2]
[357202647,1743891049027,-500.0,0.0003041,2]
[357202648,1743891049038,-1172.0,0.0003041,2]
[357202649,1743891049047,-500.0,0.0003041,2]
[357202650,1743891049056,-500.0,0.0003041,2]
[357202651,1743891049065,-500.0,0.0003041,2]
[357202652,1743891049075,-492.15897022,0.0003041,2]
[357202653,1743891049083,-500.0,0.0003041,2]
[357202654,1743891049093,-414.34754281,0.0003041,2]
[357202655,1743891049102,-184.07,0.0003061,2]
[357202656,1743891049112,-17821.3459666,0.00030663,2]
[357202657,1743891049121,-14538.0229116,0.00030663,2]
[357202658,1743891049130,-2666.70769418,0.00030664,2]
[357202659,1743891049398,-198.72,0.00030664,2]
[357202660,1743891050117,-503.41911313,0.00030409,2]
[357202661,1743891050128,-899.33783237,0.00030664,2]
[357202662,1743891050151,-5145.90745676,0.00030664,2]
[357202663,1743891050160,-9692.0152744,0.00030664,2]
[357202664,1743891050171,-17821.3459666,0.00030673,2]
[357202665,1743891050180,-19384.0305488,0.00030673,2]
[357202666,1743891050189,-35642.6919332,0.00030674,2]
[357202667,1743891050198,-33922.0534604,0.00030674,2]
[357202668,1743891050207,-500.0,0.00030683,2]
[357202669,1743891050216,-500.0,0.00030683,2]
[357202670,1743891050225,-500.0,0.00030683,2]
[357202671,1743891050235,-500.0,0.00030683,2]
[357202672,1743891050244,-500.0,0.00030683,2]
[357202673,1743891050252,-500.0,0.00030683,2]
[357202674,1743891050261,-500.0,0.00030683,2]
[357202675,1743891050271,-500.0,0.00030683,2]
[357202676,1743891050280,-500.0,0.00030683,2]
[357202677,1743891050289,-500.0,0.00030683,2]
[357202678,1743891050298,-500.0,0.00030683,2]
[357202679,1743891050307,-500.0,0.00030683,2]
[357202680,1743891050316,-500.0,0.00030683,2]
[357202681,1743891050325,-500.0,0.00030683,2]
[357202682,1743891050334,-500.0,0.00030683,2]
[357202683,1743891050343,-500.0,0.00030683,2]
[357202684,1743891050352,-357.18256731,0.00030683,2]
[357202685,1743891050362,-500.0,0.00030683,2]
[357202686,1743891050371,-500.0,0.00030683,2]
[357202687,1743891050380,-500.0,0.00030683,2]
[357202688,1743891050389,-500.0,0.00030683,2]
[357202689,1743891050398,-500.0,0.00030683,2]
[357202690,1743891050407,-500.0,0.00030683,2]
[357202691,1743891050416,-500.0,0.00030683,2]
[357202692,1743891050428,-500.0,0.00030683,2]
[357202693,1743891050441,-500.0,0.00030683,2]
[357202694,1743891050454,-500.0,0.00030683,2]
[357202695,1743891050467,-500.0,0.00030683,2]
[357202696,1743891050477,-295.76946403,0.00030683,2]
[357202697,1743891050488,-500.0,0.00030683,2]
[357202698,1743891050501,-261.13166763,0.00030683,2]
[357202699,1743891050513,-500.0,0.00030683,2]
[357202700,1743891050524,-500.0,0.00030683,2]
[357202701,1743891050538,-500.0,0.00030683,2]
[357202702,1743891050550,-500.0,0.00030683,2]
[357202703,1743891050563,-500.0,0.00030683,2]
[357202704,1743891050575,-500.0,0.00030683,2]
[357202705,1743891050587,-500.0,0.00030683,2]
[357202706,1743891050597,-500.0,0.00030683,2]
[357202707,1743891050607,-500.0,0.00030683,2]
[357202708,1743891050620,-500.0,0.00030683,2]
[357202709,1743891050632,-500.0,0.00030683,2]
[357202710,1743891050644,-500.0,0.00030683,2]
[357202711,1743891050657,-500.0,0.00030683,2]
[357202712,1743891050672,-500.0,0.00030683,2]
[357202713,1743891050685,-500.0,0.00030683,2]
[357202714,1743891050697,-500.0,0.00030683,2]
[357202715,1743891050709,-500.0,0.00030683,2]
[357202716,1743891050721,-529.06812076,0.00030683,2]
[357202717,1743891050734,-500.0,0.00030683,2]
[357202718,1743891050745,-500.0,0.00030683,2]
[357202719,1743891050758,-500.0,0.00030683,2]
[357202720,1743891050769,-500.0,0.00030683,2]
[357202721,1743891050781,-500.0,0.00030683,2]
[357202722,1743891050792,-500.0,0.00030683,2]
[357202723,1743891050804,-524.76005715,0.00030683,2]
[357202724,1743891050816,-500.0,0.00030683,2]
[357202725,1743891050829,-280.9367167,0.00030683,2]
[357202726,1743891050841,-500.0,0.00030683,2]
[357202727,1743891050851,-500.0,0.00030683,2]
[357202728,1743891050863,-500.0,0.00030683,2]
[357202729,1743891050874,-500.0,0.00030683,2]
[357202730,1743891050884,-500.0,0.00030683,2]
[357202731,1743891050895,-523.74182694,0.00030683,2]
[357202732,1743891050907,-500.0,0.00030683,2]
[357202733,1743891050922,-500.0,0.00030683,2]
[357202734,1743891050934,-914.54,0.00030683,2]
[357202735,1743891050944,-500.0,0.00030683,2]
[357202736,1743891050954,-500.0,0.00030683,2]
[357202737,1743891050964,-500.0,0.00030683,2]
[357202738,1743891050975,-500.0,0.00030683,2]
[357202739,1743891050987,-500.0,0.00030683,2]
[357202740,1743891050999,-695.17,0.00030683,2]
[357202741,1743891051011,-500.0,0.00030683,2]
[357202742,1743891051022,-500.0,0.00030683,2]
[357202743,1743891051032,-200.65189698,0.00030683,2]
[357202744,1743891051043,-2000.0,0.00030683,2]
[357202745,1743891051055,-500.0,0.00030683,2]
[357202746,1743891051066,-479.06255153,0.00030683,2]
[357202747,1743891051077,-500.0,0.00030683,2]
[357202748,1743891051089,-500.0,0.00030683,2]
[357202749,1743891051100,-500.0,0.00030683,2]
[357202750,1743891051110,-500.0,0.00030683,2]
[357202751,1743891051121,-500.0,0.00030683,2]
[357202752,1743891051132,-608.11,0.00030683,2]
[357202753,1743891051143,-500.0,0.00030683,2]
[357202754,1743891051154,-1156.3,0.00030683,2]
[357202755,1743891051165,-500.0,0.00030683,2]
[357202756,1743891051176,-573.65873985,0.00030683,2]
[357202757,1743891051187,-500.0,0.00030683,2]
[357202758,1743891051198,-500.0,0.00030683,2]
[357202759,1743891051209,-500.0,0.00030683,2]
[357202760,1743891051219,-500.0,0.00030683,2]
[357202761,1743891051231,-500.0,0.00030683,2]
[357202762,1743891051242,-500.0,0.00030683,2]
[357202763,1743891051253,-500.0,0.00030683,2]
[357202764,1743891051264,-500.0,0.00030683,2]
[357202765,1743891051275,-500.0,0.00030683,2]
[357202766,1743891051287,-175.79735363,0.00030683,2]
[357202767,1743891051298,-500.0,0.00030683,2]
[357202768,1743891051309,-500.0,0.00030683,2]
[357202769,1743891051320,-500.0,0.00030683,2]
[357202770,1743891051330,-500.0,0.00030684,2]
[357202771,1743891051341,-500.0,0.00030684,2]
[357202772,1743891051352,-523.57468149,0.00030684,2]
[357202773,1743891051363,-500.0,0.00030684,2]
[357202774,1743891051374,-500.0,0.00030684,2]
[357202775,1743891051384,-500.0,0.00030684,2]
[357202776,1743891051395,-500.0,0.00030684,2]
[357202777,1743891051407,-181.47,0.00030684,2]
[357202778,1743891051418,-500.0,0.00030684,2]
[357202779,1743891051429,-500.0,0.00030684,2]
[357202780,1743891051439,-500.0,0.00030684,2]
[357202781,1743891051450,-500.0,0.00030684,2]
[357202782,1743891051461,-500.0,0.00030684,2]
[357202783,1743891051472,-500.0,0.00030684,2]
[357202784,1743891051487,-151.78873142,0.00030684,2]
[357202785,1743891051499,-500.0,0.00030684,2]
[357202786,1743891051513,-500.0,0.00030684,2]
[357202787,1743891051527,-500.0,0.00030684,2]
[357202788,1743891051539,-500.0,0.00030684,2]
[357202789,1743891051549,-500.0,0.00030684,2]
[357202790,1743891051558,-500.0,0.00030684,2]
[357202791,1743891051567,-500.0,0.00030684,2]
[357202792,1743891051576,-500.0,0.00030684,2]
[357202793,1743891051586,-500.0,0.00030684,2]
[357202794,1743891051595,-500.0,0.00030684,2]
[357202795,1743891051604,-296.96417144,0.00030684,2]
[357202796,1743891051614,-6618.83,0.00030684,2]
[357202797,1743891051623,-500.0,0.00030684,2]
[357202798,1743891051633,-500.0,0.00030684,2]
[357202799,1743891051642,-500.0,0.00030684,2]
[357202800,1743891051651,-500.0,0.00030684,2]
[357202801,1743891051662,-500.0,0.00030684,2]
[357202802,1743891051673,-500.0,0.00030684,2]
[357202803,1743891051683,-537.22,0.00030684,2]
[357202804,1743891051694,-500.0,0.00030684,2]
[357202805,1743891051704,-574.38,0.00030684,2]
[357202806,1743891051713,-549.15,0.00030684,2]
[357202807,1743891051723,-4074.96,0.00030684,2]
[357202808,1743891051732,-500.0,0.00030684,2]
[357202809,1743891051742,-1831.85,0.00030684,2]
[357202810,1743891051752,-500.0,0.00030684,2]
[357202811,1743891051762,-500.0,0.00030684,2]
[357202812,1743891051771,-978.64,0.00030684,2]
[357202813,1743891051780,-500.0,0.00030684,2]
[357202814,1743891051789,-500.0,0.00030684,2]
[357202815,1743891051798,-500.0,0.00030684,2]
[357202816,1743891051807,-500.0,0.00030684,2]
[357202817,1743891051817,-2087.13,0.00030684,2]
[357202818,1743891051826,-7919.85,0.00030684,2]
[357202819,1743891051836,-500.0,0.00030684,2]
[357202820,1743891051845,-500.0,0.00030684,2]
[357202821,1743891051854,-500.0,0.00030684,2]
[357202822,1743891051863,-500.0,0.00030684,2]
[357202823,1743891051873,-500.0,0.00030684,2]
[357202824,1743891051882,-500.0,0.00030684,2]
[357202825,1743891052115,-500.0,0.00030684,2]
[357202826,1743891052131,-500.0,0.00030684,2]
[357202827,1743891052142,-500.0,0.00030684,2]
[357202828,1743891052151,-1172.0,0.00030684,2]
[357202829,1743891052160,-500.0,0.00030684,2]
[357202830,1743891052170,-500.0,0.00030684,2]
[357202831,1743891052180,-500.0,0.00030684,2]
[357202832,1743891052188,-500.0,0.00030684,2]
[357202833,1743891052197,-500.0,0.00030857,2]
[357202834,1743891052208,-500.0,0.00030857,2]
[357202835,1743891052219,-14538.0229116,0.00030937,2]
[357202836,1743891052228,-19384.0305488,0.00030938,2]
[357202837,1743891052237,-19384.0305488,0.00030947,2]
[357202838,1743891052246,-29076.0458232,0.00030948,2]
[357202839,1743891052255,-191.72524463,0.00030948,2]
[357202840,1743891052264,-500.0,0.00030957,2]
[357202841,1743891052274,-500.0,0.00030957,2]
[357202842,1743891052283,-500.0,0.00030957,2]
[357202843,1743891052293,-500.0,0.00030957,2]
[357202844,1743891052302,-500.0,0.00030957,2]
[357202845,1743891052311,-500.0,0.00030957,2]
[357202846,1743891052320,-500.0,0.00030957,2]
[357202847,1743891052329,-500.0,0.00030957,2]
[357202848,1743891052339,-500.0,0.00030957,2]
[357202849,1743891052348,-500.0,0.00030957,2]
[357202850,1743891052357,-500.0,0.00030957,2]
[357202851,1743891052368,-500.0,0.00030957,2]
[357202852,1743891052377,-500.0,0.00030957,2]
[357202853,1743891052388,-161.60431677,0.00030957,2]
[357202854,1743891052398,-500.0,0.00030957,2]
[357202855,1743891052407,-500.0,0.00030957,2]
[357202856,1743891052417,-500.0,0.00030957,2]
[357202857,1743891052428,-276.35704472,0.00030957,2]
[357202858,1743891052437,-500.0,0.00030957,2]
[357202859,1743891052447,-500.0,0.00030957,2]
[357202860,1743891052456,-500.0,0.00030957,2]
[357202861,1743891052465,-500.0,0.00030957,2]
[357202862,1743891052475,-500.0,0.00030957,2]
[357202863,1743891052485,-500.0,0.00030957,2]
[357202864,1743891052494,-500.0,0.00030957,2]
[357202865,1743891052507,-500.0,0.00030957,2]
[357202866,1743891052518,-325.009522,0.00030957,2]
[357202867,1743891052527,-500.0,0.00030957,2]
[357202868,1743891052537,-500.0,0.00030957,2]
[357202869,1743891052547,-500.0,0.00030957,2]
[357202870,1743891052557,-544.39786569,0.00030957,2]
[357202871,1743891052567,-500.0,0.00030957,2]
[357202872,1743891052576,-500.0,0.00030957,2]
[357202873,1743891052585,-236.776715,0.00030957,2]
[357202874,1743891052594,-500.0,0.00030957,2]
[357202875,1743891052604,-500.0,0.00030957,2]
[357202876,1743891052613,-500.0,0.00030957,2]
[357202877,1743891052623,-500.0,0.00030957,2]
[357202878,1743891052633,-500.0,0.00030957,2]
[357202879,1743891052642,-500.0,0.00030957,2]
[357202880,1743891052651,-500.0,0.00030957,2]
[357202881,1743891052666,-500.0,0.00030957,2]
[357202882,1743891052675,-500.0,0.00030957,2]
[357202883,1743891052684,-500.0,0.00030957,2]
[357202884,1743891052694,-500.0,0.00030957,2]
[357202885,1743891052705,-500.0,0.00030957,2]
[357202886,1743891052714,-500.0,0.00030957,2]
[357202887,1743891052723,-500.0,0.00030957,2]
[357202888,1743891052732,-500.0,0.00030957,2]
[357202889,1743891052743,-500.0,0.00030957,2]
[357202890,1743891052752,-500.0,0.00030957,2]
[357202891,1743891052761,-500.0,0.00030957,2]
[357202892,1743891052771,-500.0,0.00030957,2]
[357202893,1743891052780,-500.0,0.00030957,2]
[357202894,1743891052789,-500.0,0.00030957,2]
[357202895,1743891052799,-500.0,0.00030957,2]
[357202896,1743891052809,-500.0,0.00030957,2]
[357202897,1743891052818,-500.0,0.00030957,2]
[357202898,1743891052828,-500.0,0.00030957,2]
[357202899,1743891052838,-914.54,0.00030957,2]
[357202900,1743891052847,-500.0,0.00030957,2]
[357202901,1743891052857,-500.0,0.00030957,2]
[357202902,1743891052866,-500.0,0.00030957,2]
[357202903,1743891052876,-500.0,0.00030957,2]
[357202904,1743891052886,-500.0,0.00030957,2]
[357202905,1743891052896,-695.17,0.00030957,2]
[357202906,1743891052906,-500.0,0.00030957,2]
[357202907,1743891052915,-542.22693529,0.00030957,2]
[357202908,1743891052925,-2000.0,0.00030957,2]
[357202909,1743891052934,-500.0,0.00030957,2]
[357202910,1743891052944,-500.0,0.00030957,2]
[357202911,1743891052954,-500.0,0.00030957,2]
[357202912,1743891052963,-500.0,0.00030957,2]
[357202913,1743891052973,-500.0,0.00030957,2]
[357202914,1743891052982,-500.0,0.00030957,2]
[357202915,1743891052992,-608.11,0.00030957,2]
[357202916,1743891053001,-500.0,0.00030957,2]
[357202917,1743891053011,-1156.3,0.00030957,2]
[357202918,1743891053020,-500.0,0.00030957,2]
[357202919,1743891053030,-500.0,0.00030957,2]
[357202920,1743891053040,-500.0,0.00030957,2]
[357202921,1743891053050,-500.0,0.00030957,2]
[357202922,1743891053061,-500.0,0.00030957,2]
[357202923,1743891053071,-500.0,0.00030957,2]
[357202924,1743891053081,-500.0,0.00030957,2]